fUSD/lending_fUSD_20240802
["ID","MTS","AMOUNT","RATE_DAILY","PERIOD"]
[333871657,1722585049847,-678.91971,0.00019178,2]
[333871659,1722585049856,-151.0,0.00019178,2]
[333871661,1722585049866,-151.0,0.00019178,2]
[333871663,1722585049875,-151.0,0.00019178,2]
[333871665,1722585049885,-331.011092,0.00019178,2]
[333871667,1722585049896,-151.0,0.00019178,2]
[333871670,1722585049906,-331.011092,0.00019178,2]
[333871672,1722585049916,-192.948909,0.00019178,2]
[333871674,1722585049928,-500.0,0.00019178,2]
[333871676,1722585049938,-151.0,0.00019178,2]
[333871678,1722585049950,-214.821992,0.00019178,2]
[333871680,1722585049960,-151.0,0.00019178,2]
[333871682,1722585049970,-214.821992,0.00019178,2]
[333871684,1722585049982,-151.0,0.00019178,2]
[333871686,1722585049992,-151.0,0.00019178,2]
[333871688,1722585050002,-270.661824,0.00019178,2]
[333871690,1722585050012,-151.0,0.00019178,2]
[333871692,1722585050021,-540.0,0.00019178,2]
[333871694,1722585050036,-151.0,0.00019178,2]
[333871696,1722585050046,-151.0,0.00019178,2]
[333871698,1722585050055,-540.0,0.00019178,2]
[333871700,1722585050067,-151.0,0.00019178,2]
[333871702,1722585050076,-151.0,0.00019178,2]
[333871704,1722585050085,-151.0,0.00019178,2]
[333871706,1722585050094,-1069.43,0.00019178,2]
[333871708,1722585050103,-151.0,0.00019178,2]
[333871710,1722585050112,-151.0,0.00019178,2]
[333871712,1722585050122,-151.0,0.00019178,2]
[333871714,1722585050131,-4131.73,0.00019178,2]
[333871716,1722585050141,-151.0,0.00019178,2]
[333871718,1722585050150,-194.383805,0.00019178,2]
[333871720,1722585050160,-151.0,0.00019178,2]
[333871722,1722585050170,-194.383805,0.00019178,2]
[333871724,1722585050179,-151.0,0.00019178,2]
[333871726,1722585050188,-363.650866,0.00019178,2]
[333871728,1722585050198,-363.650866,0.00019178,2]
[333871730,1722585050207,-210.196679,0.00019178,2]
[333871732,1722585050216,-210.196679,0.00019178,2]
[333871734,1722585050225,-151.0,0.00019178,2]
[333871736,1722585050235,-394.24,0.00019178,2]
[333871738,1722585050244,-5000.0,0.00019178,2]
[333871740,1722585050253,-184.431786,0.00019178,2]
[333871742,1722585050263,-184.431786,0.00019178,2]
[333871744,1722585050272,-151.0,0.00019178,2]
[333871746,1722585050284,-151.0,0.00019178,2]
[333871748,1722585050293,-151.0,0.00019178,2]
[333871750,1722585050303,-188.0,0.00019178,2]
[333871752,1722585050312,-738.365832,0.00019178,2]
[333871754,1722585050322,-738.365832,0.00019178,2]
[333871756,1722585050331,-151.0,0.00019178,2]
[333871758,1722585050340,-151.0,0.00019178,2]
[333871760,1722585050350,-151.0,0.00019178,2]
[333871762,1722585050360,-2189.804913,0.00019178,2]
[333871764,1722585050369,-1140.121415,0.00019178,2]
[333871766,1722585050379,-1000.0,0.00019178,2]
[333871768,1722585050388,-2189.804913,0.00019178,2]
[333871770,1722585050398,-1140.121415,0.00019178,2]
[333871772,1722585050407,-500.0,0.00019178,2]
[333871774,1722585050417,-278.076186,0.00019178,2]
[333871776,1722585050426,-325.57925641,0.00019178,2]
[333871778,1722585050435,-278.076186,0.00019178,2]
[333871780,1722585050445,-151.0,0.00019178,2]
[333871782,1722585050454,-151.0,0.00019178,2]
[333871784,1722585050463,-151.0,0.00019178,2]
[333871786,1722585050473,-151.0,0.00019178,2]
[333871788,1722585050485,-151.0,0.00019178,2]
[333871790,1722585050494,-151.0,0.00019178,2]
[333871792,1722585050503,-151.0,0.00019178,2]
[333871794,1722585050512,-151.0,0.00019178,2]
[333871795,1722585050523,-500.0,0.00019178,2]
[333871797,1722585050533,-577.63,0.00019178,2]
[333871799,1722585050542,-1325.670577,0.00019178,2]
[333871801,1722585050551,-253.218289,0.00019178,2]
[333871803,1722585050562,-1325.670577,0.00019178,2]
[333871805,1722585050572,-253.218289,0.00019178,2]
[333871807,1722585050581,-151.484449,0.00019178,2]
[333871809,1722585050590,-151.484449,0.00019178,2]
[333871810,1722585050599,-500.0,0.00019178,2]
[333871812,1722585050608,-151.0,0.00019178,2]
[333871814,1722585050617,-151.0,0.00019178,2]
[333871816,1722585050626,-975.664188,0.00019178,2]
[333871818,1722585050635,-4757.261375,0.00019178,2]
[333871820,1722585050644,-300.0,0.00019178,2]
[333871822,1722585050655,-975.664188,0.00019178,2]
[333871824,1722585050665,-4757.261375,0.00019178,2]
[333871826,1722585050674,-151.0,0.00019178,2]
[333871828,1722585050683,-153.846154,0.00019178,2]
[333871830,1722585050693,-200.0,0.00019178,2]
[333871832,1722585050702,-200.0,0.00019178,2]
[333871834,1722585050711,-200.0,0.00019178,2]
[333871836,1722585050721,-200.0,0.00019178,2]
[333871838,1722585050731,-200.0,0.00019178,2]
[333871840,1722585050740,-200.0,0.00019178,2]
[333871842,1722585050750,-186.0,0.00019178,2]
[333871844,1722585050760,-3161.63,0.00019178,2]
[333871846,1722585050769,-750.0,0.000192,2]
[333871848,1722585050780,-7796.49354972,0.00019261,2]
[333871850,1722585050789,-150.0,0.00019261,2]
[333871852,1722585050798,-150.0,0.00019261,2]
[333871854,1722585050808,-530.37,0.00019261,2]
[333871856,1722585050817,-150.0,0.00019261,2]
[333871858,1722585050826,-532.46,0.00019261,2]
[333871860,1722585050835,-150.9,0.00019263,2]
[333871862,1722585050844,-428.76,0.00019263,2]
[333871864,1722585050853,-356.11,0.00019263,2]
[333871866,1722585050863,-150.0,0.00019263,2]
[333871868,1722585050872,-150.0,0.00019263,2]
[333871870,1722585050881,-922.1,0.00019263,2]
[333871872,1722585050890,-425.87,0.00019263,2]
[333871874,1722585050899,-150.0,0.00019263,2]
[333871876,1722585050908,-356.11,0.00019263,2]
[333871878,1722585050918,-425.87,0.00019263,2]
[333871880,1722585050927,-425.87,0.00019263,2]
[333871882,1722585050936,-150.0,0.00019263,2]
[333871884,1722585050945,-356.11,0.00019263,2]
[333871886,1722585050955,-425.87,0.00019263,2]
[333871888,1722585050964,-151.06,0.00019263,2]
[333871890,1722585050974,-150.0,0.00019263,2]
[333871892,1722585050984,-150.0,0.00019263,2]
[333871894,1722585050993,-177.13303349,0.00019296,2]
[333871896,1722585051002,-1000.0,0.00019301,2]
[333871898,1722585051011,-330.24945769,0.00019344,2]
[333871900,1722585051021,-160.0,0.00019366,2]
[333871902,1722585051033,-132089.04549829,0.00019369,3]
[333871904,1722585051042,-151.0,0.00019369,2]
[333871906,1722585051051,-151.0,0.00019369,2]
[333871908,1722585051060,-252.353539,0.00019369,2]
[333871910,1722585051069,-1185.847931,0.00019369,2]
[333871912,1722585051078,-1185.847931,0.00019369,2]
[333871914,1722585051087,-151.0,0.00019369,2]
[333871916,1722585051095,-151.0,0.00019369,2]
[333871918,1722585051105,-151.0,0.00019369,2]
[333871919,1722585051114,-151.0,0.00019369,2]
[333871921,1722585051124,-151.0,0.00019369,2]
[333871923,1722585051133,-678.91971,0.00019369,2]
[333871925,1722585051142,-678.91971,0.00019369,2]
[333871927,1722585051151,-151.0,0.00019369,2]
[333871929,1722585051161,-151.0,0.00019369,2]
[333871931,1722585051170,-151.0,0.00019369,2]
[333871933,1722585051181,-331.011092,0.00019369,2]
[333871935,1722585051191,-151.0,0.00019369,2]
[333871937,1722585051202,-331.011092,0.00019369,2]
[333871939,1722585051212,-151.0,0.00019369,2]
[333871941,1722585051223,-214.821992,0.00019369,2]
[333871943,1722585051233,-151.0,0.00019369,2]
[333871945,1722585051243,-214.821992,0.00019369,2]
[333871948,1722585051254,-151.0,0.00019369,2]
[333871950,1722585051263,-272.708173,0.00019369,2]
[333871952,1722585051273,-540.0,0.00019369,2]
[333871954,1722585051282,-151.0,0.00019369,2]
[333871956,1722585051292,-540.0,0.00019369,2]
[333871958,1722585051301,-151.0,0.00019369,2]
[333871960,1722585051311,-151.0,0.00019369,2]
[333871962,1722585051321,-151.0,0.00019369,2]
[333871964,1722585051330,-151.0,0.00019369,2]
[333871966,1722585051340,-151.0,0.00019369,2]
[333871968,1722585051349,-151.0,0.00019369,2]
[333871970,1722585051358,-975.664188,0.00019369,2]
[333871972,1722585051369,-4757.261375,0.00019369,2]
[333871974,1722585051378,-975.664188,0.00019369,2]
[333871976,1722585051387,-4757.261375,0.00019369,2]
[333871978,1722585051396,-151.0,0.00019369,2]
[333871980,1722585051405,-489.276496,0.00019369,2]
[333871982,1722585051415,-22764.353842,0.00019369,2]
[333871984,1722585051424,-18801.576709,0.00019369,2]
[333871986,1722585051435,-192.804647,0.00019369,2]
[333871987,1722585051444,-9398.120675,0.00019369,2]
[333871988,1722585051454,-436.42077402,0.00019387,2]
[333871989,1722585051464,-155.0,0.00019398,2]
[333871990,1722585051474,-155.0,0.00019398,2]
[333871991,1722585051483,-7796.49354972,0.00019402,2]
[333871992,1722585051498,-330.85201418,0.00019449,2]
[333871993,1722585051507,-347.59086137,0.0001945,2]
[333871994,1722585051516,-152.02807066,0.00019451,2]
[333871996,1722585051527,-500.0,0.00019452,2]
[333871998,1722585051536,-248.8726449,0.00019452,2]
[333871999,1722585051545,-500.0,0.00019452,2]
[333872001,1722585051554,-500.0,0.00019452,2]
[333872003,1722585051564,-500.0,0.00019452,2]
[333872005,1722585051573,-500.0,0.00019452,2]
[333872007,1722585051582,-500.0,0.00019452,2]
[333872009,1722585051591,-500.0,0.00019452,2]
[333872011,1722585051600,-500.0,0.00019452,2]
[333872013,1722585051610,-500.0,0.00019452,2]
[333872015,1722585051620,-500.0,0.00019452,2]
[333872017,1722585051630,-500.0,0.00019452,2]
[333872019,1722585051640,-500.0,0.00019452,2]
[333872021,1722585051649,-514.5994945,0.00019452,2]
[333872023,1722585051661,-500.0,0.00019452,2]
[333872025,1722585051671,-500.0,0.00019452,2]
[333872027,1722585051680,-500.0,0.00019452,2]
[333872029,1722585051690,-500.0,0.00019452,2]
[333872031,1722585051700,-500.0,0.00019452,2]
[333872033,1722585051710,-500.0,0.00019452,2]
[333872035,1722585051721,-500.0,0.00019452,2]
[333872037,1722585051732,-303.34019112,0.00019452,2]
[333872039,1722585051742,-500.0,0.00019452,2]
[333872041,1722585051751,-500.0,0.00019452,2]
[333872043,1722585051762,-2936.42,0.00019452,2]
[333872045,1722585051771,-500.0,0.00019452,2]
[333872047,1722585051782,-500.0,0.00019452,2]
[333872049,1722585051791,-500.0,0.00019452,2]
[333872051,1722585051799,-500.0,0.00019452,2]
[333872053,1722585051808,-500.0,0.00019452,2]
[333872055,1722585051818,-500.0,0.00019452,2]
[333872057,1722585051827,-500.0,0.00019452,2]
[333872059,1722585051837,-500.0,0.00019452,2]
[333872061,1722585051846,-500.0,0.00019452,2]
[333872063,1722585051855,-500.0,0.00019452,2]
[333872065,1722585051864,-500.0,0.00019452,2]
[333872066,1722585051873,-500.0,0.00019452,2]
[333872068,1722585051883,-500.0,0.00019452,2]
[333872070,1722585051892,-500.0,0.00019452,2]
[333872072,1722585051902,-500.0,0.00019452,2]
[333872074,1722585051911,-500.0,0.00019452,2]
[333872076,1722585051920,-500.0,0.00019452,2]
[333872078,1722585051929,-500.0,0.00019452,2]
[333872080,1722585051938,-742.28,0.00019452,2]
[333872082,1722585051947,-2836.49,0.00019452,2]
[333872084,1722585051956,-500.0,0.00019452,2]
[333872086,1722585051965,-500.0,0.00019452,2]
[333872088,1722585051974,-500.0,0.00019452,2]
[333872090,1722585051984,-500.0,0.00019452,2]
[333872092,1722585051993,-500.0,0.00019452,2]
[333872094,1722585052002,-500.0,0.00019452,2]
[333872096,1722585052011,-644.63,0.00019452,2]
[333872098,1722585052020,-1842.56,0.00019452,2]
[333872100,1722585052031,-500.0,0.00019452,2]
[333872102,1722585052041,-500.0,0.00019452,2]
[333872104,1722585052050,-500.0,0.00019452,2]
[333872106,1722585052059,-3362.12,0.00019452,2]
[333872108,1722585052068,-500.0,0.00019452,2]
[333872110,1722585052076,-1297.15,0.00019452,2]
[333872112,1722585052086,-500.0,0.00019452,2]
[333872114,1722585052096,-500.0,0.00019452,2]
[333872116,1722585052105,-500.0,0.00019452,2]
[333872118,1722585052114,-500.0,0.00019452,2]
[333872120,1722585052123,-500.0,0.00019452,2]
[333872122,1722585052132,-2132.99,0.00019452,2]
[333872124,1722585052142,-500.0,0.00019452,2]
[333872126,1722585052151,-1111.16,0.00019452,2]
[333872128,1722585052160,-1885.04,0.00019452,2]
[333872130,1722585052170,-1473.17,0.00019452,2]
[333872132,1722585052179,-500.0,0.00019452,2]
[333872134,1722585052188,-500.0,0.00019452,2]
[333872136,1722585052197,-500.0,0.00019452,2]
[333872138,1722585052205,-500.0,0.00019452,2]
[333872140,1722585052214,-500.0,0.00019452,2]
[333872142,1722585052223,-500.0,0.00019452,2]
[333872144,1722585052232,-500.0,0.00019452,2]
[333872146,1722585052241,-1052.68,0.00019452,2]
[333872148,1722585052250,-964.74,0.00019452,2]
[333872150,1722585052260,-500.0,0.00019452,2]
[333872152,1722585052269,-500.0,0.00019452,2]
[333872153,1722585052278,-1100.05,0.00019452,2]
[333872155,1722585052288,-500.0,0.00019452,2]
[333872157,1722585052297,-2197.06,0.00019452,2]
[333872159,1722585052306,-500.0,0.00019452,2]
[333872161,1722585052316,-669.41,0.00019452,2]
[333872163,1722585052325,-500.0,0.00019452,2]
[333872165,1722585052334,-500.0,0.00019452,2]
[333872167,1722585052343,-500.0,0.00019452,2]
[333872169,1722585052352,-500.0,0.00019452,2]
[333872171,1722585052362,-500.0,0.00019452,2]
[333872173,1722585052371,-1596.94,0.00019452,2]
[333872175,1722585052381,-500.0,0.00019452,2]
[333872177,1722585052390,-959.17,0.00019452,2]
[333872179,1722585052400,-2536.94,0.00019452,2]
[333872181,1722585052409,-500.0,0.00019452,2]
[333872183,1722585052418,-500.0,0.00019452,2]
[333872185,1722585052427,-1201.01,0.00019452,2]
[333872187,1722585052437,-500.0,0.00019452,2]
[333872189,1722585052447,-1324.73,0.00019452,2]
[333872191,1722585052456,-500.0,0.00019452,2]
[333872193,1722585052465,-500.0,0.00019452,2]
[333872195,1722585052474,-2013.18,0.00019452,2]
[333872197,1722585052486,-1737.01,0.00019452,2]
[333872198,1722585052497,-500.0,0.00019452,2]
[333872200,1722585052506,-500.0,0.00019452,2]
[333872202,1722585052515,-609.06,0.00019452,2]
[333872204,1722585052526,-500.0,0.00019452,2]
[333872206,1722585052537,-1432.65,0.00019452,2]
[333872208,1722585052546,-500.0,0.00019452,2]
[333872210,1722585052558,-646.16,0.00019452,2]
[333872212,1722585052567,-160.84330264,0.00019452,2]
[333872214,1722585052578,-936.19,0.00019452,2]
[333872216,1722585052587,-500.0,0.00019452,2]
[333872218,1722585052596,-500.0,0.00019452,2]
[333872220,1722585052606,-500.0,0.00019452,2]
[333872222,1722585052615,-500.0,0.00019452,2]
[333872224,1722585052625,-2247.55,0.00019452,2]
[333872226,1722585052634,-1761.51,0.00019452,2]
[333872228,1722585052643,-500.0,0.00019452,2]
[333872230,1722585052652,-500.0,0.00019452,2]
[333872232,1722585052662,-882.04,0.00019452,2]
[333872234,1722585052671,-505.02,0.00019452,2]
[333872236,1722585052682,-1345.7,0.00019452,2]
[333872238,1722585052692,-500.0,0.00019452,2]
[333872240,1722585052701,-541.84178145,0.00019452,2]
[333872241,1722585052711,-500.0,0.00019452,2]
[333872243,1722585052721,-577.78,0.00019452,2]
[333872245,1722585052730,-500.0,0.00019452,2]
[333872247,1722585052739,-1240.75,0.00019452,2]
[333872249,1722585052749,-940.2,0.00019452,2]
[333872251,1722585052758,-2376.99,0.00019452,2]
[333872253,1722585052767,-840.89,0.00019452,2]
[333872254,1722585052776,-2631.32,0.00019452,2]
[333872256,1722585052785,-522.93643137,0.00019452,2]
[333872258,1722585052794,-548.34,0.00019452,2]
[333872260,1722585052803,-500.0,0.00019452,2]
[333872262,1722585052812,-1098.96,0.00019452,2]
[333872264,1722585052821,-973.86,0.00019452,2]
[333872266,1722585052830,-500.0,0.00019452,2]
[333872268,1722585052839,-2068.69,0.00019452,2]
[333872270,1722585052848,-500.0,0.00019452,2]
[333872272,1722585052857,-500.0,0.00019452,2]
[333872274,1722585052867,-500.0,0.00019452,2]
[333872276,1722585052876,-1869.72,0.00019452,2]
[333872278,1722585052885,-771.99,0.00019452,2]
[333872280,1722585052895,-500.0,0.00019452,2]
[333872282,1722585052904,-500.0,0.00019452,2]
[333872284,1722585052913,-1348.68,0.00019452,2]
[333872286,1722585052922,-2441.91,0.00019452,2]
[333872288,1722585052931,-500.0,0.00019452,2]
[333872290,1722585052940,-500.0,0.00019452,2]
[333872292,1722585052949,-604.07,0.00019452,2]
[333872293,1722585052958,-535.94889249,0.00019452,2]
[333872295,1722585052967,-500.0,0.00019452,2]
[333872297,1722585052977,-1336.25,0.00019452,2]
[333872299,1722585052987,-542.8902816,0.00019452,2]
[333872301,1722585052996,-500.0,0.00019452,2]
[333872303,1722585053006,-500.0,0.00019452,2]
[333872305,1722585053015,-500.0,0.00019452,2]
[333872307,1722585053026,-500.0,0.00019452,2]
[333872309,1722585053035,-3199.97,0.00019452,2]
[333872311,1722585053044,-521.48756644,0.00019452,2]
[333872313,1722585053053,-500.0,0.00019452,2]
[333872315,1722585053063,-500.0,0.00019452,2]
[333872317,1722585053072,-1930.85,0.00019452,2]
[333872319,1722585053082,-500.0,0.00019452,2]
[333872320,1722585053091,-813.49,0.00019452,2]
[333872322,1722585053101,-508.23,0.00019452,2]
[333872324,1722585053112,-339.8010189,0.00019452,2]
[333872327,1722585053121,-2123.14,0.00019452,2]
[333872329,1722585053131,-500.0,0.00019452,2]
[333872330,1722585053141,-1035.99,0.00019452,2]
[333872332,1722585053150,-790.3,0.00019452,2]
[333872334,1722585053160,-1966.44,0.00019452,2]
[333872336,1722585053170,-1465.45,0.00019452,2]
[333872338,1722585053179,-515.57,0.00019452,2]
[333872340,1722585053190,-500.0,0.00019452,2]
[333872342,1722585053200,-2750.09,0.00019452,2]
[333872344,1722585053210,-500.0,0.00019452,2]
[333872346,1722585053220,-500.0,0.00019452,2]
[333872348,1722585053230,-500.0,0.00019452,2]
[333872350,1722585053240,-500.0,0.00019452,2]
[333872352,1722585053250,-796.74,0.00019452,2]
[333872354,1722585053260,-1111.45,0.00019452,2]
[333872356,1722585053269,-823.18,0.00019452,2]
[333872358,1722585053280,-1578.89,0.00019452,2]
[333872360,1722585053289,-500.0,0.00019452,2]
[333872362,1722585053299,-500.0,0.00019452,2]
[333872364,1722585053309,-811.42,0.00019452,2]
[333872366,1722585053319,-2448.41,0.00019452,2]
[333872368,1722585053329,-500.0,0.00019452,2]
[333872370,1722585053339,-937.92,0.00019452,2]
[333872372,1722585053348,-245.55398551,0.00019452,2]
[333872374,1722585053358,-500.0,0.00019452,2]
[333872376,1722585053368,-500.0,0.00019452,2]
[333872378,1722585053378,-2431.06,0.00019452,2]
[333872380,1722585053387,-500.0,0.00019452,2]
[333872382,1722585053397,-522.55,0.00019452,2]
[333872384,1722585053407,-8334.89,0.00019452,2]
[333872386,1722585053416,-500.0,0.00019452,2]
[333872388,1722585053426,-1043.81,0.00019452,2]
[333872390,1722585053435,-4384.29,0.00019452,2]
[333872392,1722585053445,-500.0,0.00019452,2]
[333872394,1722585053454,-500.0,0.00019452,2]
[333872396,1722585053464,-500.0,0.00019452,2]
[333872412,1722585053617,-677.11,0.00019452,2]
[333872414,1722585053628,-500.0,0.00019452,2]
[333872416,1722585053639,-537.94,0.00019452,2]
[333872418,1722585053650,-1790.2,0.00019452,2]
[333872420,1722585053660,-500.0,0.00019452,2]
[333872422,1722585053670,-500.0,0.00019452,2]
[333872424,1722585053680,-908.61,0.00019452,2]
[333872426,1722585053690,-500.0,0.00019452,2]
[333872428,1722585053700,-500.0,0.00019452,2]
[333872430,1722585053711,-509.26,0.00019452,2]
[333872432,1722585053722,-496.19817384,0.00019452,2]
[333872434,1722585053733,-500.0,0.00019452,2]
[333872436,1722585053743,-500.0,0.00019452,2]
[333872438,1722585053753,-1826.79,0.00019452,2]
[333872440,1722585053762,-622.8,0.00019452,2]
[333872442,1722585053771,-830.79,0.00019452,2]
[333872444,1722585053782,-500.0,0.00019452,2]
[333872446,1722585053793,-500.0,0.00019452,2]
[333872448,1722585053803,-500.0,0.00019452,2]
[333872450,1722585053812,-515.25,0.00019452,2]
[333872452,1722585053821,-4461.86,0.00019452,2]
[333872454,1722585053830,-1389.48,0.00019452,2]
[333872456,1722585053840,-1619.52,0.00019452,2]
[333872459,1722585053850,-569.42,0.00019452,2]
[333872461,1722585053859,-500.0,0.00019452,2]
[333872463,1722585053868,-500.0,0.00019452,2]
[333872465,1722585053877,-1091.72,0.00019452,2]
[333872467,1722585053886,-3656.18,0.00019452,2]
[333872469,1722585053896,-500.0,0.00019452,2]
[333872471,1722585053907,-500.0,0.00019452,2]
[333872473,1722585053916,-4954.7,0.00019452,2]
[333872474,1722585053925,-500.0,0.00019452,2]
[333872475,1722585053934,-585.78,0.00019452,2]
[333872476,1722585053944,-1649.97,0.00019452,2]
[333872477,1722585053953,-2880.54,0.00019452,2]
[333872478,1722585053962,-1871.11,0.00019452,2]
[333872479,1722585053972,-3092.64,0.00019452,2]
[333872480,1722585053981,-500.0,0.00019452,2]
[333872481,1722585053990,-1007.43,0.00019452,2]
[333872482,1722585054000,-1190.31,0.00019452,2]
[333872484,1722585054009,-500.0,0.00019452,2]
[333872486,1722585054019,-3933.29,0.00019452,2]
[333872488,1722585054029,-4417.5,0.00019452,2]
[333872490,1722585054039,-500.0,0.00019452,2]
[333872492,1722585054049,-1521.33,0.00019452,2]
[333872494,1722585054060,-500.0,0.00019452,2]
[333872496,1722585054070,-678.76,0.00019452,2]
[333872498,1722585054079,-512.32365532,0.00019452,2]
[333872500,1722585054089,-1868.69,0.00019452,2]
[333872502,1722585054099,-2484.48,0.00019452,2]
[333872504,1722585054109,-500.0,0.00019452,2]
[333872506,1722585054120,-5009.65,0.00019452,2]
[333872508,1722585054130,-553.08,0.00019452,2]
[333872510,1722585054140,-500.0,0.00019452,2]
[333872512,1722585054150,-500.0,0.00019452,2]
[333872514,1722585054160,-500.0,0.00019452,2]
[333872516,1722585054169,-500.0,0.00019452,2]
[333872518,1722585054179,-500.0,0.00019452,2]
[333872520,1722585054188,-500.0,0.00019452,2]
[333872522,1722585054198,-500.0,0.00019452,2]
[333872524,1722585054207,-3228.39,0.00019452,2]
[333872526,1722585054217,-625.78,0.00019452,2]
[333872528,1722585054227,-818.07,0.00019452,2]
[333872530,1722585054236,-500.0,0.00019452,2]
[333872532,1722585054246,-3346.73,0.00019452,2]
[333872534,1722585054256,-500.0,0.00019452,2]
[333872536,1722585054265,-500.0,0.00019452,2]
[333872538,1722585054276,-2919.8,0.00019452,2]
[333872540,1722585054285,-500.0,0.00019452,2]
[333872542,1722585054295,-500.0,0.00019452,2]
[333872544,1722585054304,-3292.6,0.00019452,2]
[333872546,1722585054314,-500.0,0.00019452,2]
[333872548,1722585054324,-6351.89,0.00019452,2]
[333872550,1722585054334,-500.0,0.00019452,2]
[333872552,1722585054344,-500.0,0.00019452,2]
[333872554,1722585054354,-1040.92,0.00019452,2]
[333872556,1722585054364,-500.0,0.00019452,2]
[333872558,1722585054374,-2682.2,0.00019452,2]
[333872560,1722585054383,-500.0,0.00019452,2]
[333872562,1722585054394,-1758.83,0.00019452,2]
[333872564,1722585054404,-500.0,0.00019452,2]
[333872566,1722585054414,-1745.22,0.00019452,2]
[333872568,1722585054425,-500.0,0.00019452,2]
[333872570,1722585054435,-500.0,0.00019452,2]
[333872572,1722585054446,-500.0,0.00019452,2]
[333872574,1722585054456,-1911.1,0.00019452,2]
[333872576,1722585054465,-500.0,0.00019452,2]
[333872578,1722585054475,-1391.73,0.00019452,2]
[333872580,1722585054488,-1973.04,0.00019452,2]
[333872582,1722585054499,-2562.46,0.00019452,2]
[333872584,1722585054508,-500.0,0.00019452,2]
[333872586,1722585054518,-500.0,0.00019452,2]
[333872588,1722585054528,-2652.44,0.00019452,2]
[333872590,1722585054538,-500.0,0.00019452,2]
[333872592,1722585054548,-500.0,0.00019452,2]
[333872594,1722585054560,-500.0,0.00019452,2]
[333872596,1722585054572,-1417.6,0.00019452,2]
[333872598,1722585054582,-1783.63975843,0.00019452,2]
[333872755,1722585056111,-910.0,0.00019452,2]
[333872758,1722585056135,-370.21098026,0.00018599,2]
[333872760,1722585056144,-1088.50024157,0.00019452,2]
[333872762,1722585056153,-4719.88,0.00019452,2]
[333872764,1722585056163,-500.0,0.00019452,2]
[333872766,1722585056173,-500.0,0.00019452,2]
[333872768,1722585056182,-2113.49,0.00019452,2]
[333872770,1722585056192,-500.0,0.00019452,2]
[333872771,1722585056201,-3464.79609836,0.00019452,2]
[333872772,1722585056213,-32.98390164,0.00019452,2]
[333872773,1722585056224,-500.0,0.00019452,2]
[333872774,1722585056234,-500.0,0.00019452,2]
[333872775,1722585056243,-193.67759384,0.00019452,2]
[333872776,1722585056255,-560.58454009,0.00019452,2]
[333872778,1722585056276,-19.10786607,0.00019452,2]
[333872780,1722585056287,-500.0,0.00019452,2]
[333872782,1722585056297,-1506.26,0.00019452,2]
[333872784,1722585056307,-650.89,0.00019452,2]
[333872786,1722585056316,-3020.93,0.00019452,2]
[333872788,1722585056325,-500.0,0.00019452,2]
[333872790,1722585056335,-190.1705349,0.00019452,2]
[333872792,1722585056348,-1535.6794651,0.00019452,2]
[333872794,1722585056357,-500.0,0.00019452,2]